[Event "Swedish-ch MK-Elit 2022"]
[Site "Uppsala"]
[Date "2022.07.06"]
[Round "5.3"]
[White "Engqvist, Thomas"]
[Black "Thorn, Eric"]
[Result "1/2-1/2"]
[ECO "D23"]
[WhiteElo "2330"]
[BlackElo "2366"]
[Annotator "TA"]
[PlyCount "234"]
[EventDate "2022.07.01"]
[EventType "tourn"]
[EventCountry "SWE"]
[SourceTitle "playchess.com"]
[Source "ChessBase"]
[SourceQuality "1"]
[TimeControl "40/5400+30:1800+30"]

{[%evp 43,233,-46,-54,-39,-47,-43,-54,-47,-30,-30,-30,-30,-30,-30,-30,-35,0,0,0,0,0,0,0,0,0,0,0,0,0,0,0,0,0,-25,-25,-25,-25,-25,0,0,0,-25,-25,-25,-25,-25,-25,-25,-25,-25,-25,-40,-40,-40,-40,-40,-25,-40,-40,-62,-40,-41,-40,-40,0,-104,-104,-104,-104,-104,-104,-104,-104,-104,-104,-104,-104,-104,-8,-104,-8,-104,-104,-104,-104,-104,0,-104,0,-104,-104,-104,-104,-104,-104,-104,-8,-8,-8,-8,-3,-3,-3,-3,-3,-3,-3,-3,-3,-3,-3,-3,-3,-3,0,0,0,0,0,-3,-3,-3,-3,-3,-3,-3,-3,-3,-3,-3,-3,-3,-3,-3,0,0,0,-3,-3,-3,-3,-3,-3,-3,-3,-3,0,-3,-3,-3,-3,-3,-3,-3,-3,-3,-3,-3,0,0,0,0,0,0,0,0,0,0,0,0,0,0,0,0,0,0,0,0,0,0,0,0,0,0,0,0,0,0,0,0,0,0]} 1. Nf3 {[%emt 0:00:04]} d5 {[%emt 0:01:06]} 2. d4 {[%emt 0:00:25]} Nf6 {[%emt 0:01:02]} 3. c4 {[%emt 0:00:10]} dxc4 {[%emt 0:00:42]} 4. Qa4+ {[%emt 0:00:59]} Nbd7 {[%emt 0:01:14]} 5. Nc3 {[%emt 0:00:35]} a6 {[%emt 0:10:27]} 6. e4 {[%emt 0:05:04]} e6 {[%emt 0:13:39]} 7. Bxc4 {[%emt 0:18:29]} Rb8 {[%emt 0:05:23]} 8. Qc2 {[%emt 0:00:20]} b5 {[%emt 0:01:03]} 9. Be2 {[%emt 0:01:43]} Bb7 {[%emt 0:01:51]} 10. e5 {[%emt 0:03:34]} Nd5 {[%emt 0:03:55]} 11. a4 {[%emt 0:03:35]} b4 {[%emt 0:10:57]} 12. Nxd5 {[%emt 0:02:58]} Bxd5 {[%emt 0:01:08]} 13. Bxa6 {[%emt 0:01:09]} b3 {[%emt 0:00:13]} 14. Qe2 {[%emt 0:03:19]} Bb4+ {[%emt 0:02:44]} 15. Bd2 {[%emt 0:05:46]} Bxf3 {[%emt 0:05:46]} 16. gxf3 {[%emt 0:00:13]} O-O {[%emt 0:06:16]} 17. Bxb4 {[%emt 0:06:01]} Rxb4 {[%emt 0:00:13]} 18. Qd2 {[%emt 0:03:13]} c5 {[%emt 0:01:11]} 19. dxc5 {[%emt 0:01:21]} Qa5 {[%emt 0:00:51]} 20. Be2 {[%emt 0:07:03]} Nxe5 {[%emt 0:04:19]} 21. Rg1 {[%emt 0:08:02]} Rc8 {[%emt 0:08:15]} 22. Rc1 {[%emt 0:07:50]} Rxa4 {[%emt 0:09:58]} 23. Qxa5 {[%emt 0:00:18]} Rxa5 {[%emt 0:00:04]} 24. f4 {[%emt 0:00:23]} Ng6 {[%emt 0:04:13]} 25. Rg3 {[%emt 0:00:54]} Raxc5 {[%emt 0:01:01]} 26. Rxc5 {[%emt 0:00:06]} Rxc5 {[%emt 0:00:04]} 27. Rxb3 {[%emt 0:00:04]} Kf8 {[%emt 0:01:10]} 28. Rb8+ {[%emt 0:00:30]} Ke7 {[%emt 0:00:07]} 29. Rb7+ {[%emt 0:05:41]} Ke8 {[%emt 0:05:07]} 30. b4 {[%emt 0:05:23]} Rf5 {[%emt 0:00:16]} 31. Bb5+ {[%emt 0:07:47]} Kd8 {[%emt 0:00:41]} 32. Bd3 {[%emt 0:02:34]} Rxf4 {[%emt 0:00:05]} 33. Bxg6 {[%emt 0:00:14]} hxg6 {[%emt 0:00:07]} 34. b5 {[%emt 0:00:52]} g5 {[%emt 0:01:32]} 35. b6 {[%emt 0:00:13]} e5 {[%emt 0:00:41]} 36. Rb8+ {[%emt 0:01:06]} Kd7 {[%emt 0:00:06]} 37. b7 {[%emt 0:00:25]} Kc7 {[%emt 0:00:05]} 38. Rg8 {[%emt 0:00:04]} Kxb7 {[%emt 0:00:06]} 39. Rxg7 {[%emt 0:00:04]} g4 {[%emt 0:01:02]} 40. Rh7 {[%emt 0:00:59]} Rf3 {[%emt 0:00:29]} 41. Rg7 {[%emt 0:30:08]} Rf4 {[%emt 0:31:04]} 42. Rh7 {[%emt 0:00:05]} Kc6 {[%emt 0:00:00]} 43. h3 {[%emt 0:00:00]} gxh3 {[%emt 0:00:00]} 44. Rxh3 {[%emt 0:00:00]} Kd5 {[%emt 0:00:00]} 45. Ra3 {[%emt 0:00:00]} Ke4 {[%emt 0:00:00]} 46. Ke2 {[%emt 0:00:00]} Kf5 {[%emt 0:00:00]} 47. Ra5 {[%emt 0:00:00]} Rb4 {[%emt 0:00:00]} 48. Ra7 {[%emt 0:00:00]} f6 {[%emt 0:00:00]} 49. Ra6 {[%emt 0:00:00]} Kg5 {[%emt 0:00:00]} 50. Re6 {[%emt 0:00:00]} Ra4 {[%emt 0:00:00]} 51. Re8 {[%emt 0:00:00]} Ra3 {[%emt 0:00:00]} 52. Re6 {[%emt 0:00:00]} Kf5 {[%emt 0:00:00]} 53. Rb6 {[%emt 0:00:00]} Kg5 {[%emt 0:00:00]} 54. f4+ {[%emt 0:00:00]} (54. Re6 $11) 54... exf4 $17 {[%emt 0:00:00]} 55. Kf2 {[%emt 0:00:00]} Kf5 {[%emt 0:00:00]} 56. Rb8 {[%emt 0:00:00]} Re3 {[%emt 0:01:50]} 57. Ra8 {[%emt 0:00:00]} Re5 {[%emt 0:02:22]} 58. Ra7 {[%emt 0:00:00]} Kg4 {[%emt 0:00:55]} 59. Rg7+ {[%emt 0:00:00]} Rg5 {[%emt 0:00:06]} 60. Ra7 {[%emt 0:00:00]} Rg8 {[%emt 0:00:49]} (60... Rc5 $17 {Hoping for ...Rc2+.} 61. Rg7+ Rg5) 61. Rb7 {[%emt 0:00:00]} (61. Ra6 $1 $11) 61... Rg6 {[%emt 0:01:25]} (61... Ra8 $17 {aiming for ...Ra2+.} 62. Rg7+ Kf5) 62. Ra7 {[%emt 0:00:00] [#]} (62. Rb6 $11 {remains equal.}) 62... Rg5 $1 $17 {[%emt 0:00:59]} 63. Ra8 {[%emt 0:00:00]} Rh5 {[%emt 0:01:43]} 64. Rg8+ {[%emt 0:00:00]} Rg5 {[%emt 0:00:08]} 65. Ra8 $1 {[%emt 0:00:00]} Rh5 {[%emt 0:00:08]} 66. Rg8+ {[%emt 0:00:00] [#]} Kf5 $1 {[%emt 0:00:16]} 67. Ra8 {[%emt 0:00:00]} Rh2+ {[%emt 0:01:04]} 68. Kf3 {[%emt 0:00:00]} Rh3+ {[%emt 0:00:05]} 69. Kf2 {[%emt 0:00:00]} f3 {[%emt 0:00:38]} (69... Rh1 $17) 70. Ra4 {[%emt 0:00:00]} Kg5 {[%emt 0:00:25]} 71. Rb4 {[%emt 0:01:10]} f5 {[%emt 0:01:00]} 72. Ra4 {[%emt 0:00:24]} Rh2+ {[%emt 0:01:38]} 73. Kxf3 {[%emt 0:00:06]} Rb2 {[%emt 0:00:11]} 74. Ra3 {[%emt 0:00:24]} Rb4 {[%emt 0:00:13]} 75. Kg3 {[%emt 0:00:48]} Rg4+ {[%emt 0:00:34]} 76. Kf3 {[%emt 0:00:07]} Rh4 {[%emt 0:00:08]} 77. Kf2 {[%emt 0:00:21]} Rh2+ {[%emt 0:00:47]} 78. Kg3 {[%emt 0:00:10]} Rh6 {[%emt 0:00:04]} 79. Ra8 {[%emt 0:00:24]} Re6 {[%emt 0:00:58]} 80. Rg8+ {[%emt 0:00:11]} Kf6 {[%emt 0:00:03]} 81. Kf4 {[%emt 0:00:10]} Re4+ {[%emt 0:00:09]} 82. Kf3 {[%emt 0:00:03]} Ra4 {[%emt 0:00:18]} 83. Rb8 {[%emt 0:00:05]} Kg6 {[%emt 0:00:51]} 84. Rc8 {[%emt 0:00:06]} Rb4 {[%emt 0:01:05]} 85. Ra8 {[%emt 0:00:06]} Kg5 {[%emt 0:00:29]} 86. Rg8+ {[%emt 0:00:06]} Kf6 {[%emt 0:00:04]} 87. Rf8+ {[%emt 0:00:06]} Ke6 {[%emt 0:00:17]} 88. Re8+ {[%emt 0:00:07]} Kf6 {[%emt 0:00:26]} 89. Rf8+ {[%emt 0:00:06]} Ke6 {[%emt 0:00:04]} 90. Re8+ {[%emt 0:00:05]} Kf7 {[%emt 0:00:03]} 91. Ra8 {[%emt 0:00:04]} Rd4 {[%emt 0:00:54]} 92. Rb8 {[%emt 0:00:10]} Ra4 {[%emt 0:00:14]} 93. Rc8 {[%emt 0:00:04]} Ke7 {[%emt 0:00:22]} 94. Rc6 {[%emt 0:00:06]} Kf7 {[%emt 0:00:21]} 95. Rb6 {[%emt 0:00:04]} Kg7 {[%emt 0:00:34]} 96. Rc6 {[%emt 0:00:09]} Rb4 {[%emt 0:00:33]} 97. Ra6 {[%emt 0:00:06]} Rd4 {[%emt 0:00:17]} 98. Rb6 {[%emt 0:00:05]} Re4 {[%emt 0:00:15]} 99. Ra6 {[%emt 0:00:05]} Kf7 {[%emt 0:00:16]} 100. Rb6 {[%emt 0:00:06]} Re6 {[%emt 0:00:23]} 101. Rxe6 {[%emt 0:00:11]} Kxe6 {[%emt 0:00:04]} 102. Kf4 {[%emt 0:00:05]} Kf6 {[%emt 0:00:03]} 103. Kf3 {[%emt 0:00:04]} Kg6 {[%emt 0:00:05]} (103... Ke5 $5) 104. Kf4 {[%emt 0:00:04]} Kf6 {[%emt 0:00:04]} 105. Kf3 {[%emt 0:00:03]} Ke5 {[%emt 0:00:07]} 106. Ke3 {[%emt 0:00:14]} f4+ {[%emt 0:00:56]} 107. Kf3 {[%emt 0:01:04]} Kf5 {[%emt 0:00:06]} 108. Kf2 {[%emt 0:00:05]} Kg4 {[%emt 0:00:13]} 109. Kg2 {[%emt 0:00:04]} f3+ {[%emt 0:00:20]} 110. Kf2 {[%emt 0:00:04]} Kf4 {[%emt 0:00:08]} 111. Kf1 {[%emt 0:00:05]} Ke5 {[%emt 0:00:08]} (111... Ke3 $5 112. Ke1 Kf4 $11) 112. Kf2 {[%emt 0:00:13]} Ke4 {[%emt 0:00:06]} (112... Kf4 $5) 113. Kf1 {[%emt 0:00:05]} Kf4 {[%emt 0:00:07]} (113... Kd3 $5) 114. Kf2 {[%emt 0:00:04]} Kg4 {[%emt 0:00:05]} (114... Ke4 $5) 115. Kf1 {[%emt 0:00:03]} Kg3 {[%emt 0:00:07]} (115... Kf4 $5) 116. Kg1 {[%emt 0:00:05]} f2+ {[%emt 0:00:05]} 117. Kf1 {[%emt 0:00:04]} Kf3 {[%emt 0:00:04]} 1/2-1/2

[Event "Swedish-ch MK-Elit 2022"]
[Site "Uppsala"]
[Date "2022.07.06"]
[Round "5.4"]
[White "Von Bahr, Oskar"]
[Black "Ernst, Thomas"]
[Result "1/2-1/2"]
[ECO "A45"]
[WhiteElo "2386"]
[BlackElo "2289"]
[Annotator "TA"]
[PlyCount "117"]
[EventDate "2022.07.01"]
[EventType "tourn"]
[EventCountry "SWE"]
[SourceTitle "playchess.com"]
[Source "ChessBase"]
[SourceQuality "1"]
[TimeControl "40/5400+30:1800+30"]

{[%evp 10,117,25,18,17,8,18,14,14,16,20,12,30,31,43,33,43,36,48,15,23,15,17,-5,0,0,0,-42,-32,-36,-6,-20,-25,-17,-26,-16,-22,-27,0,0,0,0,0,0,0,-14,-16,-21,-19,-23,-17,-17,-14,-19,-14,-34,-8,-8,0,0,0,0,0,0,0,0,0,0,0,0,0,0,0,0,0,0,0,0,0,0,0,0,8,8,8,8,8,0,0,0,0,0,0,0,0,0,0,0,0,0,0,0,0,0,0,0,0,0,0,0]} 1. d4 {[%emt 0:00:03]} Nf6 {[%emt 0:01:31]} 2. Bg5 {[%emt 0:00:09]} e6 {[%emt 0:00:30]} 3. e4 {[%emt 0:00:07]} h6 {[%emt 0:01:31]} 4. Bxf6 {[%emt 0:00:02]} Qxf6 {[%emt 0:00:05]} 5. c3 {[%emt 0:00:09]} d6 {[%emt 0:02:14]} 6. Bd3 {[%emt 0:00:16]} Nd7 {[%emt 0:00:55] A45: Trompowsky Attack.} 7. Nd2 {[%emt 0:03:14]} g6 {[%emt 0:00:34]} 8. Ne2 {[%emt 0:01:08]} Bg7 {[%emt 0:00:48]} 9. O-O {[%emt 0:00:48]} Qe7 {[%emt 0:06:51]} 10. f4 {[%emt 0:01:17]} O-O {[%emt 0:02:00]} 11. e5 {[%emt 0:02:15]} b6 {[%emt 0:02:26]} 12. Ng3 {[%emt 0:02:32]} Bb7 {[%emt 0:03:43][%cal Rd6e5]} 13. Qe2 {[%emt 0:02:37]} Rad8 {[%emt 0:02:31]} 14. Rad1 {[%emt 0:04:06] [#]} dxe5 $146 {[%emt 0:09:10]} ({Predecessor:} 14... Nb8 15. exd6 Qxd6 16. Nc4 Qd7 17. Qg4 Nc6 18. Rf2 Qe8 19. Qe2 Ba6 20. Ne3 Bxd3 21. Qxd3 {0-1 (82) Gallagher,J (2490)-Wahls,M (2605) Dresden 1998}) 15. fxe5 {[%emt 0:03:07]} c5 {[%emt 0:01:11]} 16. Nc4 {[%emt 0:08:48]} cxd4 {[%emt 0:10:37]} 17. cxd4 {[%emt 0:00:17]} Nb8 {[%emt 0:00:26]} 18. Qe3 {[%emt 0:08:13]} Nc6 {[%emt 0:05:04]} 19. Be4 {[%emt 0:04:42]} f5 {[%emt 0:01:47]} (19... Ba6 {is more complex.} 20. Bxc6 Bxc4 21. Rf2 Bxa2 22. b3 Qa3) 20. exf6 {[%emt 0:03:52]} (20. Bxc6 {seems wilder.} Bxc6 21. Ne2 g5 22. h4) 20... Rxf6 {[%emt 0:00:07]} 21. Rxf6 {[%emt 0:03:09]} Qxf6 {[%emt 0:00:41]} 22. Bxc6 {[%emt 0:01:24]} Bxc6 {[%emt 0:01:18] This bishop pair is nice.} 23. Ne5 {[%emt 0:02:32]} Be8 {[%emt 0:11:20]} 24. h3 {[%emt 0:09:20]} Qg5 {[%emt 0:03:22]} 25. Qxg5 {[%emt 0:04:25]} hxg5 {[%emt 0:00:06]} 26. Nf3 {[%emt 0:00:53]} Bc6 {[%emt 0:00:58]} 27. Ne2 {[%emt 0:03:49]} Bf6 {[%emt 0:03:09][%cal Oe6e5]} 28. Rd2 {[%emt 0:06:30]} e5 {[%emt 0:04:04]} 29. dxe5 {[%emt 0:03:01]} Rxd2 {[%emt 0:00:09]} 30. Nxd2 {[%emt 0:00:01]} Bxe5 $11 {[%emt 0:00:09][%mdl 4096] Endgame KBB-KNN} 31. b3 {[%emt 0:01:10]} Kf7 {[%emt 0:05:06]} 32. Kf2 {[%emt 0:00:59]} Bf6 {[%emt 0:01:35]} 33. Nf3 {[%emt 0:02:03] The position is equal.} Be4 {[%emt 0:00:36]} 34. Ke3 {[%emt 0:01:59]} Bb7 {[%emt 0:01:15]} 35. Ng3 {[%emt 0:01:48]} Ke6 {[%emt 0:04:06]} 36. Ne4 {[%emt 0:00:56]} Bxe4 {[%emt 0:00:14]} 37. Kxe4 {[%emt 0:00:05] KB-KN} a6 {[%emt 0:00:26][%cal Ba7a6,Ba6a5][%mdl 32]} 38. Ne1 {[%emt 0:04:36]} Kd6 {[%emt 0:00:47]} 39. Nd3 {[%emt 0:01:06]} a5 {[%emt 0:02:12] Prevents Nb4.} 40. a4 {[%emt 0:09:21]} Kc6 {[%emt 0:01:34]} 41. Ne1 {[%emt 0:07:54]} Kc5 {[%emt 0:02:25] [#] Hoping for ...Kb4.} 42. Nc2 {[%emt 0:04:18]} Bg7 {[%emt 0:02:30]} 43. Kd3 {[%emt 0:01:03]} Be5 {[%emt 0:04:09]} 44. Ne3 {[%emt 0:04:34]} Bc7 {[%emt 0:01:17]} 45. Ke4 {[%emt 0:03:44]} Kb4 {[%emt 0:00:53]} 46. Nd5+ {[%emt 0:02:05]} Kxb3 {[%emt 0:00:06]} 47. Nxc7 {[%emt 0:00:03]} Kxa4 {[%emt 0:00:14] KN-KP} 48. Kd3 {[%emt 0:01:58]} Kb3 {[%emt 0:00:57]} 49. Kd2 $1 {[%emt 0:01:10]} Kb2 {[%emt 0:08:50]} (49... a4 50. Kc1 Kc3 51. Nd5+ Kd4 52. Ne7 (52. Nxb6 Ke5 $11)) 50. Nd5 {[%emt 0:00:32]} b5 {[%emt 0:00:18]} (50... a4 $2 51. Nxb6 Kb3 {[#]} 52. Nxa4 $1 $18) 51. Nc3 {[%emt 0:00:39]} b4 {[%emt 0:00:30]} 52. Na4+ {[%emt 0:00:25]} Kb3 {[%emt 0:00:34]} 53. Nc5+ {[%emt 0:00:07]} Kc4 {[%emt 0:01:36]} 54. Na4 {[%emt 0:01:45]} Kd4 {[%emt 0:07:17]} 55. Nb2 {[%emt 0:01:12]} Ke4 {[%emt 0:01:11]} 56. Ke2 {[%emt 0:01:40]} Kd4 {[%emt 0:01:33] aiming for ...Kc3.} 57. Kd2 {[%emt 0:00:16]} Ke4 {[%emt 0:00:30]} 58. Ke2 {[%emt 0:00:05]} Kd4 {[%emt 0:00:18] Strongly threatening ...Kc3.} 59. Kd2 {[%emt 0:00:32] Weighted Error Value: White=0.04 (flawless) /Black=0.03 (flawless)} 1/2-1/2

[Event "Swedish-ch MK-Elit 2022"]
[Site "Uppsala"]
[Date "2022.07.06"]
[Round "5.5"]
[White "Trost, Edvin"]
[Black "Cederstam, Carl"]
[Result "1/2-1/2"]
[ECO "D30"]
[WhiteElo "2345"]
[BlackElo "2332"]
[Annotator "TA"]
[PlyCount "59"]
[EventDate "2022.07.01"]
[EventType "tourn"]
[EventCountry "SWE"]
[SourceTitle "playchess.com"]
[Source "ChessBase"]
[SourceQuality "1"]
[TimeControl "40/5400+30:1800+30"]

{[%evp 9,59,21,18,17,17,14,33,15,18,16,17,19,42,36,35,28,31,22,25,23,36,32,27,17,27,10,10,16,16,16,12,8,11,12,27,14,15,18,75,68,100,94,88,92,83,0,0,0,0,0,0,0]} 1. d4 {[%emt 0:00:01]} d5 {[%emt 0:02:56]} 2. c4 {[%emt 0:00:24]} e6 {[%emt 0:00:50]} 3. Nf3 {[%emt 0:00:13]} a6 {[%emt 0:00:18]} 4. Bg5 {[%emt 0:00:41]} Be7 {[%emt 0:00:19]} 5. Bxe7 {[%emt 0:00:07]} Qxe7 {[%emt 0:00:05]} 6. Nbd2 {[%emt 0:00:19] D30: Queen's Gambit Declined: Systems without Nc3.} Nf6 {[%emt 0:01:11]} 7. g3 {[%emt 0:00:37]} b6 {[%emt 0:02:17]} 8. Bg2 {[%emt 0:00:46] White is slightly better.} Bb7 {[%emt 0:00:09]} 9. O-O {[%emt 0:00:11]} Nbd7 {[%emt 0:01:54]} 10. Rc1 {[%emt 0:03:21][%cal Ba1c1,Bc1c4,Bc4d4][%mdl 32] Threatening cxd5.} c5 {[%emt 0:00:12]} 11. Ne5 {[%emt 0:02:54]} cxd4 {[%emt 0:07:09]} 12. Nxd7 {[%emt 0:00:42]} Qxd7 {[%emt 0:01:08]} 13. Nf3 {[%emt 0:01:37]} dxc4 {[%emt 0:13:14]} 14. Rxc4 {[%emt 0:00:36]} Qd8 {[%emt 0:16:10][%cal Oe6e5]} 15. Rxd4 {[%emt 0:01:09]} ({Wrong is} 15. Nxd4 $2 Bxg2 16. Nxe6 fxe6 $19) 15... Qc7 {[%emt 0:03:04]} 16. Qa4+ {[%emt 0:04:09]} b5 {[%emt 0:00:15] [#]} 17. Qa3 $146 {[%emt 0:04:11]} ({Predecessor:} 17. Qb4 Rc8 18. Rfd1 Qe7 19. a4 Qxb4 20. Rxb4 Nd5 21. Rb3 Bc6 22. axb5 Bxb5 23. Nd4 {1-0 (58) Panjwani,R (2436)-Ostrovskiy,A (2409) Charlotte 2022}) 17... Qe7 {[%emt 0:00:19]} 18. Rc1 {[%emt 0:00:48] [#] And now Qxe7+ would win.} Qxa3 {[%emt 0:01:24]} 19. bxa3 {[%emt 0:00:24]} O-O {[%emt 0:01:09]} 20. Ne5 $36 {[%emt 0:02:19][%mdl 2048] White has good play.} Bxg2 {[%emt 0:07:02]} 21. Kxg2 {[%emt 0:00:11]} Rfc8 {[%emt 0:04:09]} 22. Rxc8+ {[%emt 0:01:03]} Rxc8 $11 {[%emt 0:00:01][%mdl 4096] Endgame KRN-KRN} 23. Rd6 {[%emt 0:00:45]} Ne4 {[%emt 0:08:30]} (23... g5 $11 {keeps the balance.}) 24. Rxa6 $16 {[%emt 0:00:17]} Nc3 {[%emt 0:00:58][%csl LRa2,LRe2] [#]} 25. Rc6 $1 {[%emt 0:13:01]} Rxc6 {[%emt 0:00:07]} 26. Nxc6 {[%emt 0:00:04]} Nxa2 {[%emt 0:01:39]} 27. Kf1 {[%emt 0:01:33]} (27. f4 $16) 27... Nc3 $11 {[%emt 0:01:15] The position is equal.} 28. Na7 {[%emt 0:00:28]} Kf8 {[%emt 0:00:43]} 29. Ke1 {[%emt 0:00:40]} Ke7 {[%emt 0:08:07]} 30. Kd2 {[%emt 0:00:09] Weighted Error Value: White=0.04 (flawless) /Black=0.10 (very precise)} 1/2-1/2

[Event "Swedish-ch MK-Elit 2022"]
[Site "Uppsala"]
[Date "2022.07.07"]
[Round "6.2"]
[White "Thorn, Eric"]
[Black "Wiedenkeller, Michael"]
[Result "1/2-1/2"]
[ECO "E11"]
[WhiteElo "2366"]
[BlackElo "2437"]
[Annotator "TA"]
[PlyCount "174"]
[EventDate "2022.07.01"]
[EventType "tourn"]
[EventCountry "SWE"]
[SourceTitle "playchess.com"]
[Source "ChessBase"]
[SourceQuality "1"]
[TimeControl "40/5400+30:1800+30"]

{[%evp 17,173,18,21,8,12,13,27,11,17,22,18,12,16,0,0,0,11,9,5,-5,14,-8,0,0,0,0,0,0,0,0,15,17,27,22,22,18,28,20,30,4,21,0,-3,-56,-56,-61,-50,-72,-60,-259,-253,-414,-408,-595,-327,-302,-266,-365,-370,-355,-304,-328,-340,-339,-314,-331,-307,-337,-335,-352,-313,-409,-395,-383,-383,-418,-443,-433,-420,-440,-436,-448,-455,-470,-487,-484,-505,-491,-482,-540,-520,-505,-352,-422,-422,-398,-348,-330,-280,-304,-285,-404,-404,-385,-346,-358,-352,-451,-363,-418,-417,-402,-93,-101,0,0,0,0,0,0,0,0,0,0,0,0,0,-2389,0,0,0,0,0,0,0,0,0,0,0,0,0,0,0,0,0,0,0,0,0,0,0,0,0,0,0,0,0,0]} 1. Nf3 {[%emt 0:02:01]} d5 {[%emt 0:00:30]} 2. c4 {[%emt 0:00:15]} e6 {[%emt 0:02:02]} 3. d4 {[%emt 0:00:26]} Nf6 {[%emt 0:00:36]} 4. g3 {[%emt 0:00:06]} Bb4+ {[%emt 0:04:34]} 5. Bd2 {[%emt 0:00:26]} a5 {[%emt 0:00:07]} 6. Qc2 {[%emt 0:00:50]} Nc6 {[%emt 0:04:02]} 7. Bg2 {[%emt 0:04:06]} dxc4 {[%emt 0:00:30]} 8. Qxc4 {[%emt 0:07:43]} Qd5 {[%emt 0:00:17]} 9. Qxd5 {[%emt 0:07:26]} exd5 {[%emt 0:07:05]} 10. O-O {[%emt 0:03:40] E11: Bogo-Indian.} Bg4 {[%emt 0:08:57]} 11. Be3 {[%emt 0:08:15] [#]} Na7 $146 {[%emt 0:11:45]} ({Predecessor:} 11... Ne4 12. h3 Be6 13. Bf4 O-O-O 14. Na3 Bxa3 15. bxa3 Nc3 16. Rfe1 Nb5 17. Rac1 f6 {½-½ (78) Delorme,A (2455)-Marin,M (2597) Bratto 2010}) 12. Bf4 {[%emt 0:09:18] White has an edge.} c6 {[%emt 0:03:43]} 13. a3 {[%emt 0:01:09]} Be7 {[%emt 0:00:08]} 14. Nc3 {[%emt 0:00:18]} O-O {[%emt 0:04:11]} 15. Rfc1 {[%emt 0:04:05]} Rfe8 {[%emt 0:05:32]} 16. Nd2 {[%emt 0:12:39]} Be6 {[%emt 0:08:56]} 17. Nb3 {[%emt 0:01:58]} b6 {[%emt 0:15:29]} 18. Na4 {[%emt 0:03:45]} Bd8 {[%emt 0:00:44]} 19. Bg5 {[%emt 0:04:48]} h6 {[%emt 0:02:39]} 20. Bxf6 {[%emt 0:03:36]} Bxf6 {[%emt 0:00:23]} 21. e3 {[%emt 0:00:29]} (21. Nxb6 $2 Rab8 22. Nxa5 Rxb6 $19) 21... Rab8 {[%emt 0:00:44]} 22. Nd2 {[%emt 0:01:54]} Bd7 {[%emt 0:03:40]} 23. Nc3 {[%emt 0:02:18][%cal Oc3d5]} Nc8 {[%emt 0:04:28]} 24. b4 {[%emt 0:01:06]} Nd6 {[%emt 0:00:33] Prevents b5.} 25. bxa5 {[%emt 0:06:33]} (25. b5 Nxb5 26. Nxb5 cxb5 $15) 25... bxa5 {[%emt 0:02:16]} 26. Na4 {[%emt 0:00:10][%cal Bc3a4,Ba4c5,Bc5b3][%mdl 32]} Be7 {[%emt 0:01:15]} 27. Nc5 {[%emt 0:00:39] Pair of Knights!} Bf5 {[%emt 0:00:20]} 28. Ncb3 {[%emt 0:01:06]} a4 {[%emt 0:02:26]} 29. Na5 {[%emt 0:00:07]} (29. Nc5 $5 {[%cal Rc5a4]}) 29... Rb2 {[%emt 0:00:34]} 30. Nf3 {[%emt 0:02:27]} (30. Nb1 $11) 30... Ne4 $15 {[%emt 0:01:02][%cal Bd6e4,Be4f2,Bf2h3][%mdl 32]} 31. Nxc6 {[%emt 0:03:17]} Nxf2 {[%emt 0:00:15] Threatens to win with ...Ng4.} ({Don't play} 31... Rxf2 32. Nxe7+ (32. Nh4 Rxg2+ 33. Nxg2 Bf8 $16) 32... Rxe7 33. Nh4 Rxg2+ 34. Kxg2 $16) 32. Nxe7+ {[%emt 0:02:29]} Rxe7 {[%emt 0:00:04]} 33. Rf1 $2 {[%emt 0:02:00]} ({Only move:} 33. Ne5 $1 $15) 33... Nh3+ $19 {[%emt 0:01:23]} 34. Kh1 $2 {[%emt 0:05:05]} (34. Bxh3 Bxh3 35. Rf2) 34... Rxe3 {[%emt 0:01:00]} 35. Rae1 {[%emt 0:00:43]} (35. Rfe1 $142 Rd3 36. Rf1) 35... Rxe1 {[%emt 0:03:02]} 36. Rxe1 {[%emt 0:00:24]} Rb3 {[%emt 0:01:31]} 37. Nh4 {[%emt 0:00:48]} Be4 {[%emt 0:00:13]} 38. Bxe4 {[%emt 0:00:31]} Nf2+ {[%emt 0:00:59]} 39. Kg1 {[%emt 0:00:08]} Nxe4 {[%emt 0:00:08][%mdl 4096] Endgame KRN-KRN} 40. Nf5 {[%emt 0:00:33]} Kf8 {[%emt 0:01:24] Against Ne7} ({Avoid the trap} 40... Rxa3 $2 41. Ne7+ Kh7 42. Nxd5 $19) 41. Ne3 {[%emt 0:01:56]} Nc3 {[%emt 0:04:31]} ({Not} 41... Rxa3 $2 42. Nxd5 Nd6 43. Rc1 $19) 42. Ra1 {[%emt 0:10:14]} g6 {[%emt 0:02:36]} 43. Kg2 {[%emt 0:04:00]} Rb2+ {[%emt 0:05:48]} 44. Kf3 {[%emt 0:07:47]} Rxh2 {[%emt 0:01:03]} 45. Rc1 {[%emt 0:00:10]} Nb5 {[%emt 0:01:12][%csl LRa3,LRd4]} 46. Rc8+ {[%emt 0:03:14]} Kg7 {[%emt 0:00:12]} 47. Nxd5 {[%emt 0:00:03]} Nxd4+ {[%emt 0:02:24]} 48. Ke4 {[%emt 0:00:07]} Nb5 {[%emt 0:01:42] [#] aiming for ...Nd6+.} 49. Ra8 {[%emt 0:02:53]} Rd2 {[%emt 0:05:53]} 50. Nf4 {[%emt 0:04:22]} Ra2 {[%emt 0:03:52]} 51. Ra5 {[%emt 0:00:37]} Nd6+ {[%emt 0:00:43]} 52. Kd5 {[%emt 0:00:24]} Nf5 {[%emt 0:02:49]} 53. Rxa4 {[%emt 0:00:20]} Nxg3 {[%emt 0:00:05]} 54. Ra7 {[%emt 0:00:50]} Ne2 {[%emt 0:01:20]} 55. Ne6+ {[%emt 0:00:49]} Kf6 {[%emt 0:00:20]} 56. Nc5 {[%emt 0:00:21]} Rd2+ {[%emt 0:01:42]} 57. Ke4 {[%emt 0:00:32]} Nc3+ {[%emt 0:00:14]} 58. Ke3 {[%emt 0:00:28]} Rd5 {[%emt 0:00:33]} 59. Nd7+ {[%emt 0:00:30]} (59. Rc7 $142) 59... Kg7 {[%emt 0:00:09]} 60. Nb6 {[%emt 0:00:33]} Rd6 {[%emt 0:00:59]} 61. Nc4 {[%emt 0:00:28]} Re6+ {[%emt 0:00:14]} 62. Kd3 {[%emt 0:00:15]} Nb5 {[%emt 0:00:30]} 63. Rd7 {[%emt 0:00:51]} Ra6 {[%emt 0:00:55]} 64. Ne5 {[%emt 0:00:30]} Rxa3+ $2 {[%emt 0:02:26]} (64... Nd6 $19 {has better winning chances.} 65. Kd4 Nf5+ 66. Kd5 Ra5+ 67. Ke4 Kf6) 65. Kc4 $17 {[%emt 0:00:11] [#]} Ra7 {[%emt 0:00:14]} 66. Kxb5 $11 {[%emt 0:00:23]} Rxd7 67. Nxd7 {[%emt 0:00:04] KN-K3P} h5 {[%emt 0:00:08]} 68. Kc4 {[%emt 0:00:35]} h4 {[%emt 0:00:08]} 69. Nc5 $1 {[%emt 0:00:40]} Kf6 {[%emt 0:00:44] And now ...h3 would win.} 70. Kd3 {[%emt 0:00:26]} Kf5 {[%emt 0:01:05] Strongly threatening ...h3.} (70... g5 $5 71. Ke4 Kg7 $11) 71. Ke3 {[%emt 0:00:22]} g5 {[%emt 0:00:40]} 72. Ne4 $2 {[%emt 0:00:30][%mdl 8192]} (72. Kf3 $11 g4+ 73. Kg2) 72... h3 $2 {[%emt 0:00:38]} ({Black should try} 72... g4 $19 {( -> ...g3)} 73. Nd6+ Ke6) 73. Ng3+ {[%emt 0:01:08] The position is equal.} Kg4 {[%emt 0:00:07]} 74. Nf1 {[%emt 0:00:29]} f5 {[%emt 0:00:16]} 75. Kf2 {[%emt 0:00:05]} Kf4 {[%emt 0:00:42]} 76. Ng3 $1 {[%emt 0:00:35]} g4 {[%emt 0:01:25]} (76... Ke5 $5 77. Nh1 g4 $11) 77. Ne2+ {[%emt 0:00:11]} Ke4 {[%emt 0:00:19]} 78. Kg3 {[%emt 0:00:40] Against f4+} Ke3 {[%emt 0:00:51]} 79. Nf4 {[%emt 0:00:01]} Kd2 {[%emt 0:00:13]} (79... h2 $5 80. Ng2+ Ke4 81. Kxh2 f4 $11) 80. Kf2 {[%emt 0:00:54]} h2 {[%emt 0:00:43]} 81. Kg2 {[%emt 0:00:07]} Ke3 {[%emt 0:00:14]} (81... g3 $5 82. Nh5 Ke3 83. Nxg3 f4 $11) 82. Nh5 {[%emt 0:01:22]} h1=Q+ {[%emt 0:00:52]} 83. Kxh1 {[%emt 0:00:01]} Kf2 {[%emt 0:00:14]} 84. Nf6 {[%emt 0:01:07]} g3 {[%emt 0:00:28]} 85. Ne4+ {[%emt 0:00:28]} Kf3 {[%emt 0:00:15]} 86. Ng5+ {[%emt 0:00:16]} Kf2 {[%emt 0:00:41]} 87. Ne4+ {[%emt 0:00:03]} fxe4 {[%emt 0:00:28] Weighted Error Value: White=0.31/Black=0.14 (very precise)} 1/2-1/2